{"text_format":"2","workbook":"xlsx","n_sheets":1,"sheets":["Спека"],"not_rendered":{"charts":0,"images":0,"macros":0,"external_links":0,"defined_names":0,"comments":0,"pivot_tables":0},"unopened":[],"bounds":{"document_bytes":16777216,"sheet_cells":100000,"run_cost":"one","rows_first":2000,"rows_last":500,"rows_between":2000,"halvings":0,"cell_chars":16384,"cell_head_chars":4096},"cells_cut":0,"cells_raw":0,"read":"whole","date_system":"1900"}

{"sheet":"Спека","index":0,"n_rows":66,"n_cols":8,"rows_kept":66,"cut":false,"hidden":false,"merged":[[65,1,72,3],[5,0,5,7],[2,0,2,7],[7,7,16,7],[50,0,50,7],[57,2,59,2],[40,7,41,7]]}
[null,"Дата",{"$f":"TODAY()","v":"2019-04-12"}]
[]
["Спецификация оборудования и материалов"]
["Позиция","Производитель","Код","Наименование","Кол-во, шт, (м)","Цена","Стоимость (руб)","Примечание"]
[1.0,2.0,3.0,4.0,5.0,null,null,8.0]
["Оборудование, материалы"]
[1.0," (Рувинил Москва)","Е0321. ","Бокс 68324СП серый на 24 модуля с клеммником прозрачная дверь IP40",1.0,768.0,{"$f":"F7*E7","v":768}]
[2.0,"(Schneider Electric)","А0047. ","Автоматический выключатель EASY 9 EZ9F34240 C40А/2п/ 4,5 кА на Din-рейку (Schneider Electric)",1.0,356.0,356]
[3.0," (Schneider Electric)","К8916. ","Устройство защитного отключения EZ9R64240 (тип АС) 40А-300мА 230В 1P+N",1.0,2532.0,2532]
[4.0," (Schneider Electric)","К8904. ","Устройство защитного отключения EZ9R34240 (тип АС) 40А-30мА 230В 1P+N",2.0,2532.0,5064]
[5.0,"(Schneider Electric)","А0034. ","Автоматический выключатель EASY 9 EZ9F34116 C16А/1п/ 4,5 кА на Din-рейку ",8.0,124.0,992]
[6.0," (Schneider Electric)","А0033."," Автоматический выключатель EASY 9 EZ9F34110 C10А/1п/ 4,5 кА на Din-рейку",2.0,137.0,274]
[7.0," (Электрокабель Кольчугино)","П0126. ","Провод ПуГВ 1х4,0 кв.мм красный ГОСТ",2.0,22.78,45.56]
[8.0," (Электрокабель Кольчугино)","П0128. ","Провод ПуГВ 1х4,0 кв.мм голубой ГОСТ",2.0,23.48,46.96]
[9.0,null,null,"Расходные материалы для сборки электрощита (наконечники для опресовки, маркировка)",1.0,null,0]
[10.0," (АВВ)","Б6714. ","Клемма M16/12 винтовая 1SNA115129R1400 серая 16мм2 85А 800В ширина 12мм",1.0,94.72,94.72]
[11.0," (АВВ)","Б6715","Клемма M16/12.N винтовая 1SNA125129R1600 синяя 16мм2 85А 800В ширина 12мм ",1.0,130.15,130.15]
[12.0,null,"П1174. ","Кабель силовой ВВГнг(А)-LS 3х1,5ок (N,PE)-0,66 ГОСТ малодымный ",200.0,45.44,9088]
[13.0,null,"П1180. ","Кабель силовой ВВГнг(А)-LS 3х2,5ок (N,PE) - 0,66 ГОСТ ",200.0,65.94,13188]
[14.0," (Wago)","К4625. ","Зажим 222-413 безвинтовой 3х(0,08-4) кв.мм для медного провода",100.0,17.48,1748]
[15.0,"(Рувинил Москва)","Д6230. ","Короб РКК-20х10 1 канальный (Рувинил Москва)",31.0,27.88,864.28]
[16.0,"(Рувинил Москва)","Д6231."," Угол плоский ПВР-20х10 (Рувинил Москва)",20.0,11.32,226.4]
[17.0,"(Рувинил Москва)","Д6232. ","Отвод ТРН-20х10 (Рувинил Москва)",20.0,11.32,226.4]
[18.0,"(Рувинил Москва)","Д6233. ","Угол внутренний УВН-20х10 (Рувинил Москва)",20.0,11.32,226.4]
[19.0,"(Рувинил Москва)","Д6236. ","Муфта ПРС-20х10 (Рувинил Москва)",10.0,13.1,131]
[20.0,"(Рувинил Москва)","Д6234. ","Угол внешний УВШ-20х10 (Рувинил Москва)",10.0,11.32,113.2]
[21.0,"(Рувинил Москва)","Д6240. ","Короб РКК-25х16 1 канальный (Рувинил Москва)",30.0,46.84,1405.2]
[22.0,"(Рувинил Москва)","Д6241. ","Угол плоский ПВР-25х16 (Рувинил Москва)",15.0,12.45,186.75]
[23.0,"(Рувинил Москва)","Д6242. ","Отвод ТРН-25х16 (Рувинил Москва)",15.0,12.45,186.75]
[24.0,"(Рувинил Москва)","Д6243. ","Угол УВН-25х16 внутренний (Рувинил Москва)",15.0,12.45,186.75]
[25.0,"(Рувинил Москва)","Д6244. ","Угол УВШ-25х16 внешний (Рувинил Москва)",15.0,12.45,186.75]
[26.0,"(Рувинил Москва)","Д6245. ","Заглушка ЗГЛ-25х16 (Рувинил Москва)",10.0,12.45,124.5]
[27.0,"(Рувинил Москва)","Д6246. ","Муфта ПРС-25х16 (Рувинил Москва)",10.0,12.45,124.5]
[28.0,"(Рувинил Москва)","Д6280. ","Короб РКК-40х16 1 канальный (Рувинил Москва)",15.0,69.07,1036.05]
[29.0,"(Рувинил Москва)","Д6281. ","Угол плоский ПВР-40х16 (Рувинил Москва)",10.0,23.1,231]
[30.0,"(Рувинил Москва)","Д6282. ","Отвод ТРН-40х16 (Рувинил Москва)",10.0,23.1,231]
[31.0,"(Рувинил Москва)","Д6283. ","Угол внутренний УВН-40х16 (Рувинил Москва)",10.0,23.1,231]
[32.0,"(Рувинил Москва)","Д6284. ","Угол внешний УВШ-40х16 (Рувинил Москва)",5.0,23.1,115.5]
[33.0,"(Рувинил Москва)","Д6285. ","Заглушка ЗГЛ-40х16 (Рувинил Москва)",5.0,23.1,115.5]
[34.0,"(Рувинил Москва)","Д6286. ","Муфта ПРС-40х16 (Рувинил Москва)",5.0,26.7,133.5]
[35.0,"(Нилед Подольск)","П2603. ","Зажим анкерный клиновой DN126 (Sпров=2х16-4х35мм2) 10602381 Niled ГОСТ ",1.0,null,0,"Подвод к Сущ. дому не предусмотрен."]
[36.0,"(МЗВА Москва)","П2638. ","Кронштейн анкерный СА 2000.1 ГОСТ 00000000032 ",1.0,204.86,204.86]
[37.0,null,null,"Розетки, люстры, включатели ",null,null,24000.0,"Покупается Заказчиком"]
[38.0,null,null,"Шурупы по дереву с пресшайбой 15мм (1000шт)",2000.0,null,{"$f":"F44*E44","v":0}]
[41.0,null,null,"КОМПЛЕКТ ЗАЗЕМЛЕНИЯ ДЛЯ ЧАСТНОГО ДОМА в составе:"]
[42.0," (Электрокабель Кольчугино)","П0139. ","Провод ПуГВ 1х10,0 кв.мм желто-зеленый ГОСТ",17.0,56.5,{"$f":"F46*E46","v":960.5}]
[43.0,null,"Б0886. ","Уголок 05003 монтажный перф. для ВРУх В=1800мм для монтаж. плат (Щитэлектрокомплект Москва)",1.0,null,0]
[44.0,"Леруа мерлен",1.0443884E7,"Заглушка наружная 160 мм",1.0,null,0]
[45.0,"Леруа мерлен",1.044531E7,"Муфта ремонтная наружная 160 мм",1.0,null,0]
[46.0,null,null,"Расходный материал (изолента, метизы, маркеры, ремешки, изоляторы, термоусадки, наконечники)",1.0,null,0]
["Монтажные работы"]
[1.0,null,null,"Электромонтажные работы в доме под ключ. (сборка электрощита, установка розеток, выключателей, прокладка кабельных линий в коробах) ",1.0,null,{"$f":"F52*E52","v":0}]
[2.0,null,null,"Установка контура зеземления",1.0,null,0]
[3.0,null,null,"Подготовка траншеи (м/п) для контура заземления",2.3,null,0]
[]
[]
[]
[null,null,"ИТОГО","Материалы, оборудование",{"$f":"SUM(G8:G50)","v":65007.18}]
[null,null,null,"Монтажные работы",{"$f":"SUM(G52:G54)","v":0}]
[{"$nulls":4},{"$f":"SUM(E58:E59)","v":65007.18}]
[null,null,null,"Подписание договора, аванс 20%"]
[null,null,null,"Закупка материалов 100% "]
[null,null,null,"Выходим на объект, приступаем к работам 30%"]
[null,null,null,"Сдача объекта, 50%"]
[]
[null,"Примечания: 1) срок поставки оборудования и материалов 1  неделя;    2) В стоимость не входит установка светильников (конечных элементов освещения)"]